[Event "Titled Tuesday Blitz February 28 Early 2023"]
[White "Sielecki, Christof"]
[Black "Lehtosaari, Mauri"]
[WhiteFideId "4620437"]
[BlackFideId "501999"]
[WhiteElo "2443"]
[BlackElo "2535"]
[Result "1-0"]
[Round "09"]
[TimeControl "180+2"]
[Date "2023.02.28"]
[WhiteClock "0:00:15"]
[BlackClock "0:00:01"]

1. e4 {[%clk 0:03:00]}  e6 {[%clk 0:02:53]} 2. d4 {[%clk 0:03:00]}  d5 {[%clk 0:02:47]} 3. Nd2 {[%clk 0:03:00]}  dxe4 {[%clk 0:02:47]} 4. Nxe4 {[%clk 0:03:00]}  Nd7 {[%clk 0:02:47]} 5. Nf3 {[%clk 0:02:56]}  Ngf6 {[%clk 0:02:47]} 6. Nxf6+ {[%clk 0:02:56]}  Nxf6 {[%clk 0:02:46]} 7. Be3 {[%clk 0:02:56]}  Be7 {[%clk 0:02:34]} 8. Qd2 {[%clk 0:02:51]}  a6 {[%clk 0:02:29]} 9. O-O-O {[%clk 0:02:50]}  O-O {[%clk 0:02:22]} 10. Kb1 {[%clk 0:02:45]}  b5 {[%clk 0:02:21]} 11. Bd3 {[%clk 0:02:38]}  Bb7 {[%clk 0:02:20]} 12. h4 {[%clk 0:02:35]}  Be4 {[%clk 0:02:18]} 13. Bxe4 {[%clk 0:02:25]}  Nxe4 {[%clk 0:02:18]} 14. Qd3 {[%clk 0:02:25]}  Qd5 {[%clk 0:02:11]} 15. Ng5 {[%clk 0:02:19]}  f5 {[%clk 0:02:00]} 16. Nxe4 {[%clk 0:02:14]}  fxe4 {[%clk 0:02:01]} 17. Qe2 {[%clk 0:02:12]}  a5 {[%clk 0:01:52]} 18. c4 {[%clk 0:01:55]}  bxc4 {[%clk 0:01:46]} 19. Rc1 {[%clk 0:01:55]}  Bd6 {[%clk 0:01:36]} 20. Qxc4 {[%clk 0:01:50]}  Qf5 {[%clk 0:01:36]} 21. g3 {[%clk 0:01:43]}  Rfb8 {[%clk 0:01:29]} 22. Rhd1 {[%clk 0:01:40]}  a4 {[%clk 0:01:25]} 23. Rc2 {[%clk 0:01:28]}  Rb4 {[%clk 0:01:08]} 24. Qc6 {[%clk 0:01:16]}  Rab8 {[%clk 0:01:07]} 25. d5 {[%clk 0:01:07]}  e5 {[%clk 0:00:29]} 26. Rdd2 {[%clk 0:01:06]}  Qf3 {[%clk 0:00:27]} 27. Qd7 {[%clk 0:00:48]}  Qh1+ {[%clk 0:00:21]} 28. Rc1 {[%clk 0:00:47]}  Qf3 {[%clk 0:00:21]} 29. Rdc2 {[%clk 0:00:35]}  h6 {[%clk 0:00:15]} 30. Ka1 {[%clk 0:00:34]}  Qf6 {[%clk 0:00:13]} 31. a3 {[%clk 0:00:31]}  Rb3 {[%clk 0:00:12]} 32. Qxa4 {[%clk 0:00:29]}  Qf7 {[%clk 0:00:08]} 33. Qc6 {[%clk 0:00:25]}  Rd3 {[%clk 0:00:08]} 34. Kb1 {[%clk 0:00:22]}  Qxd5 {[%clk 0:00:07]} 35. Qxd5+ {[%clk 0:00:22]}  Rxd5 {[%clk 0:00:08]} 36. Ka2 {[%clk 0:00:20]}  Rdb5 {[%clk 0:00:08]} 37. b4 {[%clk 0:00:20]}  Ra8 {[%clk 0:00:07]} 38. Kb3 {[%clk 0:00:20]}  Kf7 {[%clk 0:00:07]} 39. Rc4 {[%clk 0:00:20]}  Ke6 {[%clk 0:00:07]} 40. a4 {[%clk 0:00:20]}  Rb7 {[%clk 0:00:07]} 41. b5 {[%clk 0:00:21]}  Kd5 {[%clk 0:00:07]} 42. Rd1+ {[%clk 0:00:21]}  Ke6 {[%clk 0:00:07]} 43. Rxe4 {[%clk 0:00:21]}  h5 {[%clk 0:00:07]} 44. Rc4 {[%clk 0:00:21]}  g6 {[%clk 0:00:07]} 45. f4 {[%clk 0:00:20]}  exf4 {[%clk 0:00:07]} 46. Bxf4 {[%clk 0:00:21]}  Rba7 {[%clk 0:00:07]} 47. Re1+ {[%clk 0:00:20]}  Kd5 {[%clk 0:00:07]} 48. Rd1+ {[%clk 0:00:19]}  Ke6 {[%clk 0:00:07]} 49. Bxd6 {[%clk 0:00:19]}  cxd6 {[%clk 0:00:08]} 50. Rcd4 {[%clk 0:00:20]}  Rd8 {[%clk 0:00:07]} 51. Kb4 {[%clk 0:00:20]}  Rdd7 {[%clk 0:00:05]} 52. a5 {[%clk 0:00:20]}  Rac7 {[%clk 0:00:05]} 53. b6 {[%clk 0:00:20]}  Rc5 {[%clk 0:00:06]} 54. a6 {[%clk 0:00:20]}  Rc6 {[%clk 0:00:05]} 55. b7 {[%clk 0:00:15]}  Rxa6 {[%clk 0:00:01]} 56. b8=Q {[%clk 0:00:15]} 1-0


[Site "https://www.chess.com"]

[Event "Titled Tuesday Blitz February 28 Early 2023"]
[White "Postma, Dinant"]
[Black "Fiedorek, Michal"]
[WhiteFideId "1018612"]
[BlackFideId "1199528"]
[WhiteElo "2594"]
[BlackElo "2135"]
[Result "0-1"]
[Round "09"]
[TimeControl "180+2"]
[Date "2023.02.28"]
[WhiteClock "0:00:09"]
[BlackClock "0:00:37"]

1. d4 {[%clk 0:02:55]}  d5 {[%clk 0:02:58]} 2. Bf4 {[%clk 0:02:55]}  e6 {[%clk 0:02:58]} 3. e3 {[%clk 0:02:55]}  Bd6 {[%clk 0:02:58]} 4. Bg3 {[%clk 0:02:55]}  Nf6 {[%clk 0:02:57]} 5. Nd2 {[%clk 0:02:53]}  b6 {[%clk 0:02:55]} 6. Ngf3 {[%clk 0:02:53]}  Bb7 {[%clk 0:02:50]} 7. Bd3 {[%clk 0:02:52]}  O-O {[%clk 0:02:39]} 8. Ne5 {[%clk 0:02:50]}  c5 {[%clk 0:02:39]} 9. c3 {[%clk 0:02:48]}  Nc6 {[%clk 0:02:34]} 10. f4 {[%clk 0:02:45]}  Ne7 {[%clk 0:02:27]} 11. Qb1 {[%clk 0:02:43]}  g6 {[%clk 0:02:03]} 12. Bh4 {[%clk 0:02:38]}  Nf5 {[%clk 0:02:00]} 13. Bxf5 {[%clk 0:02:21]}  exf5 {[%clk 0:02:00]} 14. Ndf3 {[%clk 0:02:18]}  Be7 {[%clk 0:01:56]} 15. O-O {[%clk 0:02:14]}  Ne4 {[%clk 0:01:52]} 16. Bxe7 {[%clk 0:02:13]}  Qxe7 {[%clk 0:01:52]} 17. Qd3 {[%clk 0:02:09]}  c4 {[%clk 0:01:47]} 18. Qe2 {[%clk 0:02:06]}  f6 {[%clk 0:01:47]} 19. Nxc4 {[%clk 0:02:03]}  dxc4 {[%clk 0:01:46]} 20. Qxc4+ {[%clk 0:02:04]}  Qf7 {[%clk 0:01:40]} 21. Qd3 {[%clk 0:01:58]}  Rac8 {[%clk 0:01:36]} 22. Rfc1 {[%clk 0:01:23]}  Qc4 {[%clk 0:01:34]} 23. Qd1 {[%clk 0:01:04]}  b5 {[%clk 0:01:33]} 24. a4 {[%clk 0:00:55]}  a6 {[%clk 0:01:18]} 25. axb5 {[%clk 0:00:55]}  axb5 {[%clk 0:01:18]} 26. Ra7 {[%clk 0:00:56]}  Qd5 {[%clk 0:01:13]} 27. Qe2 {[%clk 0:00:48]}  Ra8 {[%clk 0:01:07]} 28. Rca1 {[%clk 0:00:43]}  Rxa7 {[%clk 0:01:06]} 29. Rxa7 {[%clk 0:00:44]}  Ra8 {[%clk 0:01:06]} 30. Rxa8+ {[%clk 0:00:41]}  Bxa8 {[%clk 0:01:06]} 31. Nd2 {[%clk 0:00:34]}  Nxd2 {[%clk 0:01:02]} 32. Qxd2 {[%clk 0:00:35]}  Bc6 {[%clk 0:00:54]} 33. h4 {[%clk 0:00:29]}  Kg7 {[%clk 0:00:48]} 34. Qf2 {[%clk 0:00:27]}  Qe4 {[%clk 0:00:46]} 35. Qd2 {[%clk 0:00:24]}  Bd5 {[%clk 0:00:45]} 36. Qe2 {[%clk 0:00:21]}  Bc4 {[%clk 0:00:45]} 37. Qd2 {[%clk 0:00:21]}  Qd3 {[%clk 0:00:45]} 38. Qxd3 {[%clk 0:00:18]}  Bxd3 {[%clk 0:00:44]} 39. Kf2 {[%clk 0:00:18]}  Kf7 {[%clk 0:00:43]} 40. h5 {[%clk 0:00:16]}  Ke6 {[%clk 0:00:41]} 41. h6 {[%clk 0:00:14]}  Kd5 {[%clk 0:00:40]} 42. Ke1 {[%clk 0:00:13]}  Kc4 {[%clk 0:00:39]} 43. Kd2 {[%clk 0:00:13]}  Be4 {[%clk 0:00:39]} 44. g3 {[%clk 0:00:13]}  Kb3 {[%clk 0:00:39]} 45. Kc1 {[%clk 0:00:13]}  Ka2 {[%clk 0:00:36]} 46. b4 {[%clk 0:00:08]}  Kb3 {[%clk 0:00:36]} 47. Kd2 {[%clk 0:00:09]}  Kc4 {[%clk 0:00:37]} 0-1


[Site "https://www.chess.com"]

[Event "Titled Tuesday Blitz February 28 Early 2023"]
[White "Degenbaev, Aziz"]
[Black "Matinian, Nikita"]
[WhiteFideId "13802640"]
[BlackFideId "24129100"]
[WhiteElo "2152"]
[BlackElo "2422"]
[Result "1/2-1/2"]
[Round "09"]
[TimeControl "180+2"]
[Date "2023.02.28"]
[WhiteClock "0:00:05"]
[BlackClock "0:00:06"]

1. e4 {[%clk 0:02:56]}  c5 {[%clk 0:02:55]} 2. Nf3 {[%clk 0:02:56]}  e6 {[%clk 0:02:54]} 3. d4 {[%clk 0:02:56]}  cxd4 {[%clk 0:02:54]} 4. Nxd4 {[%clk 0:02:56]}  Nc6 {[%clk 0:02:54]} 5. Nxc6 {[%clk 0:02:46]}  bxc6 {[%clk 0:02:54]} 6. Bd3 {[%clk 0:02:46]}  d5 {[%clk 0:02:50]} 7. exd5 {[%clk 0:02:46]}  cxd5 {[%clk 0:02:49]} 8. O-O {[%clk 0:02:47]}  Nf6 {[%clk 0:02:49]} 9. c4 {[%clk 0:02:47]}  Bd6 {[%clk 0:02:35]} 10. Nc3 {[%clk 0:02:23]}  dxc4 {[%clk 0:02:34]} 11. Bxc4 {[%clk 0:02:19]}  Bxh2+ {[%clk 0:02:34]} 12. Kh1 {[%clk 0:02:11]}  Qxd1 {[%clk 0:02:32]} 13. Rxd1 {[%clk 0:02:10]}  Be5 {[%clk 0:02:29]} 14. f4 {[%clk 0:02:07]}  Bxc3 {[%clk 0:01:45]} 15. bxc3 {[%clk 0:02:05]}  Bd7 {[%clk 0:01:45]} 16. f5 {[%clk 0:01:56]}  Rc8 {[%clk 0:01:37]} 17. fxe6 {[%clk 0:01:53]}  fxe6 {[%clk 0:01:38]} 18. Bb3 {[%clk 0:01:48]}  Rxc3 {[%clk 0:01:30]} 19. Bb2 {[%clk 0:01:42]}  Rc7 {[%clk 0:01:30]} 20. Be5 {[%clk 0:01:39]}  Rb7 {[%clk 0:01:29]} 21. Rd6 {[%clk 0:01:34]}  Rb6 {[%clk 0:01:25]} 22. Rd4 {[%clk 0:01:27]}  Bc6 {[%clk 0:01:13]} 23. Bc7 {[%clk 0:01:23]}  Rb7 {[%clk 0:01:02]} 24. Rd8+ {[%clk 0:01:23]}  Kf7 {[%clk 0:01:03]} 25. Rxh8 {[%clk 0:01:24]}  Rxc7 {[%clk 0:01:03]} 26. Re1 {[%clk 0:01:20]}  Bd5 {[%clk 0:01:03]} 27. Bxd5 {[%clk 0:01:17]}  exd5 {[%clk 0:01:04]} 28. Rb8 {[%clk 0:01:14]}  h5 {[%clk 0:01:03]} 29. a4 {[%clk 0:01:13]}  Kg6 {[%clk 0:01:00]} 30. a5 {[%clk 0:01:03]}  Rc5 {[%clk 0:00:59]} 31. Ra1 {[%clk 0:01:03]}  d4 {[%clk 0:00:52]} 32. Rd8 {[%clk 0:00:59]}  Nd5 {[%clk 0:00:47]} 33. a6 {[%clk 0:00:28]}  d3 {[%clk 0:00:47]} 34. Rd1 {[%clk 0:00:22]}  Nf4 {[%clk 0:00:45]} 35. Rd7 {[%clk 0:00:22]}  Ra5 {[%clk 0:00:35]} 36. Rxa7 {[%clk 0:00:22]}  Ra2 {[%clk 0:00:31]} 37. Ra8 {[%clk 0:00:18]}  Kg5 {[%clk 0:00:25]} 38. a7 {[%clk 0:00:19]}  g6 {[%clk 0:00:25]} 39. Rd8 {[%clk 0:00:04]}  Rxa7 {[%clk 0:00:25]} 40. R8xd3 {[%clk 0:00:04]}  Nxd3 {[%clk 0:00:25]} 41. Rxd3 {[%clk 0:00:04]}  Ra4 {[%clk 0:00:24]} 42. Kh2 {[%clk 0:00:04]}  Kg4 {[%clk 0:00:24]} 43. Rg3+ {[%clk 0:00:04]}  Kf5 {[%clk 0:00:25]} 44. Rf3+ {[%clk 0:00:05]}  Rf4 {[%clk 0:00:25]} 45. Rb3 {[%clk 0:00:04]}  g5 {[%clk 0:00:25]} 46. Rb5+ {[%clk 0:00:04]}  Kg4 {[%clk 0:00:25]} 47. Rb3 {[%clk 0:00:05]}  Re4 {[%clk 0:00:20]} 48. Rg3+ {[%clk 0:00:05]}  Kf5 {[%clk 0:00:19]} 49. Rf3+ {[%clk 0:00:05]}  Rf4 {[%clk 0:00:20]} 50. Rb3 {[%clk 0:00:06]}  h4 {[%clk 0:00:16]} 51. Kh3 {[%clk 0:00:03]}  Rf1 {[%clk 0:00:13]} 52. Rb5+ {[%clk 0:00:02]}  Kg6 {[%clk 0:00:13]} 53. Kg4 {[%clk 0:00:02]}  Rf4+ {[%clk 0:00:13]} 54. Kh3 {[%clk 0:00:02]}  Kh5 {[%clk 0:00:13]} 55. Rc5 {[%clk 0:00:02]}  Rf1 {[%clk 0:00:11]} 56. Kh2 {[%clk 0:00:03]}  Kg6 {[%clk 0:00:09]} 57. Rc6+ {[%clk 0:00:02]}  Kf5 {[%clk 0:00:09]} 58. Rc5+ {[%clk 0:00:03]}  Kg4 {[%clk 0:00:09]} 59. Rc4+ {[%clk 0:00:03]}  Rf4 {[%clk 0:00:09]} 60. Rc5 {[%clk 0:00:04]}  Re4 {[%clk 0:00:09]} 61. Rb5 {[%clk 0:00:04]}  Kf4 {[%clk 0:00:09]} 62. Rb8 {[%clk 0:00:03]}  g4 {[%clk 0:00:09]} 63. Rf8+ {[%clk 0:00:03]}  Ke3 {[%clk 0:00:09]} 64. Rg8 {[%clk 0:00:04]}  Rf4 {[%clk 0:00:05]} 65. Re8+ {[%clk 0:00:04]}  Kf2 {[%clk 0:00:05]} 66. Rb8 {[%clk 0:00:04]}  g3+ {[%clk 0:00:03]} 67. Kh3 {[%clk 0:00:04]}  Kg1 {[%clk 0:00:03]} 68. Rb1+ {[%clk 0:00:03]}  Rf1 {[%clk 0:00:03]} 69. Rb4 {[%clk 0:00:02]}  Kh1 {[%clk 0:00:02]} 70. Rxh4 {[%clk 0:00:01]}  Kg1 {[%clk 0:00:01]} 71. Kxg3 {[%clk 0:00:01]}  Rf8 {[%clk 0:00:02]} 72. Rg4 {[%clk 0:00:02]}  Rh8 {[%clk 0:00:02]} 73. Kf4 {[%clk 0:00:02]}  Rf8+ {[%clk 0:00:02]} 74. Kg5 {[%clk 0:00:02]}  Kh2 {[%clk 0:00:02]} 75. g3 {[%clk 0:00:03]}  Rf3 {[%clk 0:00:03]} 76. Kh4 {[%clk 0:00:03]}  Rf8 {[%clk 0:00:04]} 77. Rg7 {[%clk 0:00:03]}  Rh8+ {[%clk 0:00:04]} 78. Kg4 {[%clk 0:00:04]}  Rh3 {[%clk 0:00:03]} 79. Kf4 {[%clk 0:00:04]}  Kg2 {[%clk 0:00:04]} 80. g4 {[%clk 0:00:04]}  Rf3+ {[%clk 0:00:04]} 81. Ke5 {[%clk 0:00:05]}  Kg3 {[%clk 0:00:05]} 82. g5 {[%clk 0:00:05]}  Kg4 {[%clk 0:00:06]} 83. g6 {[%clk 0:00:05]}  Kg5 {[%clk 0:00:06]} 84. Rg8 {[%clk 0:00:05]}  Ra3 {[%clk 0:00:05]} 85. Ke6 {[%clk 0:00:04]}  Ra6+ {[%clk 0:00:05]} 86. Kf7 {[%clk 0:00:05]}  Ra7+ {[%clk 0:00:05]} 87. Ke6 {[%clk 0:00:05]}  Ra6+ {[%clk 0:00:05]} 88. Kf7 {[%clk 0:00:06]}  Ra7+ {[%clk 0:00:06]} 89. Ke6 {[%clk 0:00:05]}  Ra6+ {[%clk 0:00:06]} 1/2-1/2


[Site "https://www.chess.com"]

[Event "Titled Tuesday Blitz February 28 Early 2023"]
[White "Spata, German"]
[Black "Ezat, Mohamed"]
[WhiteFideId "113026"]
[BlackFideId "10600906"]
[WhiteElo "2238"]
[BlackElo "2388"]
[Result "0-1"]
[Round "09"]
[TimeControl "180+2"]
[Date "2023.02.28"]
[WhiteClock "0:00:50"]
[BlackClock "0:00:08"]

1. Nf3 {[%clk 0:02:56]}  Nf6 {[%clk 0:02:11]} 2. c4 {[%clk 0:02:55]}  c5 {[%clk 0:02:09]} 3. g3 {[%clk 0:02:55]}  g6 {[%clk 0:02:09]} 4. Bg2 {[%clk 0:02:55]}  Bg7 {[%clk 0:02:09]} 5. O-O {[%clk 0:02:56]}  O-O {[%clk 0:02:10]} 6. Nc3 {[%clk 0:02:57]}  d5 {[%clk 0:02:10]} 7. cxd5 {[%clk 0:02:56]}  Nxd5 {[%clk 0:02:11]} 8. d3 {[%clk 0:02:55]}  Nc6 {[%clk 0:02:11]} 9. Nxd5 {[%clk 0:02:53]}  Qxd5 {[%clk 0:02:10]} 10. Be3 {[%clk 0:02:54]}  Bxb2 {[%clk 0:02:10]} 11. Rb1 {[%clk 0:02:50]}  Bf6 {[%clk 0:02:09]} 12. Nd4 {[%clk 0:02:49]}  Qxa2 {[%clk 0:02:10]} 13. Nxc6 {[%clk 0:02:44]}  bxc6 {[%clk 0:02:10]} 14. Bxc6 {[%clk 0:02:45]}  Bh3 {[%clk 0:02:10]} 15. Bxa8 {[%clk 0:02:32]}  Rxa8 {[%clk 0:02:09]} 16. Bxc5 {[%clk 0:02:16]}  Qd5 {[%clk 0:02:08]} 17. e4 {[%clk 0:02:02]}  Qxc5 {[%clk 0:02:06]} 18. Re1 {[%clk 0:01:59]}  Bd4 {[%clk 0:01:55]} 19. Qf3 {[%clk 0:01:57]}  Be6 {[%clk 0:01:52]} 20. Rec1 {[%clk 0:01:57]}  Qe5 {[%clk 0:01:40]} 21. Kg2 {[%clk 0:01:52]}  h5 {[%clk 0:01:38]} 22. Qe2 {[%clk 0:01:50]}  h4 {[%clk 0:01:37]} 23. f4 {[%clk 0:01:47]}  h3+ {[%clk 0:01:36]} 24. Kh1 {[%clk 0:01:47]}  Qa5 {[%clk 0:01:30]} 25. f5 {[%clk 0:01:43]}  gxf5 {[%clk 0:01:03]} 26. Qh5 {[%clk 0:01:43]}  Qd2 {[%clk 0:00:57]} 27. Qxh3 {[%clk 0:01:43]}  fxe4 {[%clk 0:00:56]} 28. Qh4 {[%clk 0:01:34]}  Rd8 {[%clk 0:00:31]} 29. dxe4 {[%clk 0:01:21]}  Bf6 {[%clk 0:00:22]} 30. Qf4 {[%clk 0:01:10]}  Bg5 {[%clk 0:00:21]} 31. Qxd2 {[%clk 0:01:06]}  Bxd2 {[%clk 0:00:21]} 32. Rd1 {[%clk 0:01:06]}  Bg4 {[%clk 0:00:21]} 33. Kg2 {[%clk 0:01:04]}  Bxd1 {[%clk 0:00:20]} 34. Rxd1 {[%clk 0:01:04]}  Ba5 {[%clk 0:00:20]} 35. Ra1 {[%clk 0:00:59]}  Rd2+ {[%clk 0:00:17]} 36. Kf3 {[%clk 0:01:00]}  Bb6 {[%clk 0:00:16]} 37. h4 {[%clk 0:01:00]}  Rd3+ {[%clk 0:00:16]} 38. Kg4 {[%clk 0:01:00]}  Kg7 {[%clk 0:00:15]} 39. Kf4 {[%clk 0:00:57]}  Bc7+ {[%clk 0:00:14]} 40. e5 {[%clk 0:00:58]}  f6 {[%clk 0:00:14]} 41. Rxa7 {[%clk 0:00:57]}  Bxe5+ {[%clk 0:00:14]} 42. Kf5 {[%clk 0:00:57]}  Kf7 {[%clk 0:00:12]} 43. g4 {[%clk 0:00:54]}  Rd4 {[%clk 0:00:12]} 44. Rxe7+ {[%clk 0:00:47]}  Kxe7 {[%clk 0:00:12]} 45. g5 {[%clk 0:00:48]}  fxg5 {[%clk 0:00:11]} 46. hxg5 {[%clk 0:00:48]}  Bg7 {[%clk 0:00:11]} 47. Kg6 {[%clk 0:00:48]}  Kf8 {[%clk 0:00:12]} 48. Kh7 {[%clk 0:00:48]}  Rd5 {[%clk 0:00:11]} 49. Kg6 {[%clk 0:00:48]}  Kg8 {[%clk 0:00:11]} 50. Kh5 {[%clk 0:00:47]}  Bf6 {[%clk 0:00:11]} 51. Kg6 {[%clk 0:00:47]}  Bxg5 {[%clk 0:00:11]} 52. Kh5 {[%clk 0:00:47]}  Be7+ {[%clk 0:00:10]} 53. Kg6 {[%clk 0:00:48]}  Rg5+ {[%clk 0:00:10]} 54. Kh6 {[%clk 0:00:49]}  Rg1 {[%clk 0:00:10]} 55. Kh5 {[%clk 0:00:49]}  Kf7 {[%clk 0:00:09]} 56. Kh6 {[%clk 0:00:50]}  Rg4 {[%clk 0:00:08]} 0-1


[Site "https://www.chess.com"]

[Event "Titled Tuesday Blitz February 28 Early 2023"]
[White "Sokac, Marko"]
[Black "Vlassov, Nikolai"]
[WhiteFideId "14531356"]
[BlackFideId "4103360"]
[WhiteElo "2355"]
[BlackElo "2324"]
[Result "0-1"]
[Round "09"]
[TimeControl "180+2"]
[Date "2023.02.28"]
[WhiteClock "0:00:08"]
[BlackClock "0:00:17"]

1. e4 {[%clk 0:03:00]}  c5 {[%clk 0:02:58]} 2. a3 {[%clk 0:02:44]}  Nf6 {[%clk 0:02:56]} 3. Nc3 {[%clk 0:02:44]}  d5 {[%clk 0:02:52]} 4. exd5 {[%clk 0:02:43]}  Nxd5 {[%clk 0:02:52]} 5. Bc4 {[%clk 0:02:42]}  Be6 {[%clk 0:02:51]} 6. Qf3 {[%clk 0:02:38]}  Nc7 {[%clk 0:02:39]} 7. Bxe6 {[%clk 0:02:36]}  Nxe6 {[%clk 0:02:39]} 8. Qxb7 {[%clk 0:02:36]}  Nd7 {[%clk 0:02:38]} 9. Nf3 {[%clk 0:02:36]}  g5 {[%clk 0:02:22]} 10. Qe4 {[%clk 0:02:13]}  Bg7 {[%clk 0:02:20]} 11. h4 {[%clk 0:02:10]}  g4 {[%clk 0:02:02]} 12. Qxg4 {[%clk 0:02:05]}  Nf6 {[%clk 0:01:58]} 13. Qg3 {[%clk 0:01:57]}  Rg8 {[%clk 0:01:30]} 14. Ng5 {[%clk 0:01:43]}  Nd4 {[%clk 0:01:25]} 15. Qd3 {[%clk 0:01:27]}  Rc8 {[%clk 0:01:18]} 16. Nge4 {[%clk 0:01:11]}  c4 {[%clk 0:01:08]} 17. Nxf6+ {[%clk 0:01:11]}  Bxf6 {[%clk 0:01:08]} 18. Qxh7 {[%clk 0:01:07]}  Rxg2 {[%clk 0:01:07]} 19. Qe4 {[%clk 0:01:01]}  Rg8 {[%clk 0:00:56]} 20. Nd5 {[%clk 0:00:48]}  Rc6 {[%clk 0:00:40]} 21. Kd1 {[%clk 0:00:33]}  Re6 {[%clk 0:00:40]} 22. Qh7 {[%clk 0:00:26]}  Qxd5 {[%clk 0:00:26]} 23. Qxg8+ {[%clk 0:00:26]}  Kd7 {[%clk 0:00:26]} 24. Rh3 {[%clk 0:00:18]}  Qf5 {[%clk 0:00:18]} 25. Rc3 {[%clk 0:00:08]}  Qxf2 {[%clk 0:00:17]} 0-1


[Site "https://www.chess.com"]

[Event "Titled Tuesday Blitz February 28 Early 2023"]
[White "Yaran, Siar"]
[Black "Cheng, Xiao"]
[WhiteFideId "6323006"]
[BlackFideId "2022915"]
[WhiteElo "2191"]
[BlackElo "2494"]
[Result "1-0"]
[Round "09"]
[TimeControl "180+2"]
[Date "2023.02.28"]
[WhiteClock "0:00:06"]
[BlackClock "0:00:10"]

1. d4 {[%clk 0:02:56]}  Nf6 {[%clk 0:02:59]} 2. c4 {[%clk 0:02:54]}  e6 {[%clk 0:02:55]} 3. Nc3 {[%clk 0:02:54]}  d5 {[%clk 0:02:53]} 4. Bg5 {[%clk 0:02:53]}  Bb4 {[%clk 0:02:52]} 5. e3 {[%clk 0:02:48]}  Nbd7 {[%clk 0:02:49]} 6. Bd3 {[%clk 0:02:14]}  c5 {[%clk 0:02:46]} 7. Ne2 {[%clk 0:02:11]}  Qa5 {[%clk 0:02:43]} 8. Bxf6 {[%clk 0:02:03]}  Nxf6 {[%clk 0:02:42]} 9. O-O {[%clk 0:01:56]}  cxd4 {[%clk 0:02:38]} 10. exd4 {[%clk 0:01:37]}  dxc4 {[%clk 0:02:35]} 11. Bxc4 {[%clk 0:01:37]}  O-O {[%clk 0:02:34]} 12. a3 {[%clk 0:01:28]}  Bd6 {[%clk 0:02:34]} 13. Qd3 {[%clk 0:01:25]}  e5 {[%clk 0:02:27]} 14. Rad1 {[%clk 0:01:18]}  a6 {[%clk 0:02:09]} 15. Ng3 {[%clk 0:01:08]}  Bg4 {[%clk 0:02:04]} 16. Rde1 {[%clk 0:00:45]}  exd4 {[%clk 0:01:56]} 17. Qxd4 {[%clk 0:00:30]}  Qc5 {[%clk 0:01:54]} 18. Qxc5 {[%clk 0:00:28]}  Bxc5 {[%clk 0:01:55]} 19. Nge4 {[%clk 0:00:28]}  Nxe4 {[%clk 0:01:52]} 20. Nxe4 {[%clk 0:00:28]}  Bd4 {[%clk 0:01:52]} 21. h3 {[%clk 0:00:26]}  Bh5 {[%clk 0:01:45]} 22. a4 {[%clk 0:00:21]}  Rac8 {[%clk 0:01:37]} 23. b3 {[%clk 0:00:21]}  Rc7 {[%clk 0:01:25]} 24. Nd6 {[%clk 0:00:20]}  Rd7 {[%clk 0:01:24]} 25. Nf5 {[%clk 0:00:20]}  Bc3 {[%clk 0:01:22]} 26. Re3 {[%clk 0:00:20]}  Bd2 {[%clk 0:01:19]} 27. Re5 {[%clk 0:00:18]}  Bg6 {[%clk 0:01:09]} 28. Ne7+ {[%clk 0:00:17]}  Kh8 {[%clk 0:01:08]} 29. Nxg6+ {[%clk 0:00:18]}  hxg6 {[%clk 0:01:05]} 30. Rd1 {[%clk 0:00:17]}  Rfd8 {[%clk 0:00:58]} 31. g3 {[%clk 0:00:14]}  f6 {[%clk 0:00:55]} 32. Re4 {[%clk 0:00:12]}  g5 {[%clk 0:00:54]} 33. Kg2 {[%clk 0:00:12]}  Kh7 {[%clk 0:00:52]} 34. h4 {[%clk 0:00:12]}  Kg6 {[%clk 0:00:48]} 35. Rh1 {[%clk 0:00:12]}  Rb8 {[%clk 0:00:37]} 36. Be6 {[%clk 0:00:08]}  Rd6 {[%clk 0:00:33]} 37. hxg5 {[%clk 0:00:08]}  Bxg5 {[%clk 0:00:33]} 38. f4 {[%clk 0:00:08]}  Bh6 {[%clk 0:00:30]} 39. Rh4 {[%clk 0:00:06]}  Rd2+ {[%clk 0:00:18]} 40. Kf3 {[%clk 0:00:05]}  Rbd8 {[%clk 0:00:18]} 41. Kg4 {[%clk 0:00:05]}  R8d3 {[%clk 0:00:16]} 42. Bf5+ {[%clk 0:00:06]}  Kf7 {[%clk 0:00:15]} 43. Rb4 {[%clk 0:00:06]}  Rg2 {[%clk 0:00:12]} 44. Rxb7+ {[%clk 0:00:06]}  Ke8 {[%clk 0:00:12]} 45. Bxd3 {[%clk 0:00:07]}  f5+ {[%clk 0:00:11]} 46. Bxf5 {[%clk 0:00:07]}  Kd8 {[%clk 0:00:10]} 47. Rh1 {[%clk 0:00:06]}  Rd2 {[%clk 0:00:10]} 48. Rc1 {[%clk 0:00:06]}  Rd6 {[%clk 0:00:10]} 49. Rc8# {[%clk 0:00:06]} 1-0


[Site "https://www.chess.com"]

[Event "Titled Tuesday Blitz February 28 Early 2023"]
[White "Womacka, Mathias"]
[Black "Pinheiro, Iung Alicio de O."]
[WhiteFideId "4611390"]
[BlackFideId "2104350"]
[WhiteElo "2377"]
[BlackElo "2283"]
[Result "1/2-1/2"]
[Round "09"]
[TimeControl "180+2"]
[Date "2023.02.28"]
[WhiteClock "0:00:31"]
[BlackClock "0:00:22"]

1. e4 {[%clk 0:03:00]}  c5 {[%clk 0:02:59]} 2. Nf3 {[%clk 0:03:00]}  Nc6 {[%clk 0:02:59]} 3. d4 {[%clk 0:02:57]}  cxd4 {[%clk 0:02:59]} 4. Nxd4 {[%clk 0:02:57]}  e5 {[%clk 0:03:00]} 5. Nb5 {[%clk 0:02:56]}  d6 {[%clk 0:03:00]} 6. c4 {[%clk 0:02:55]}  Be7 {[%clk 0:02:59]} 7. N1c3 {[%clk 0:02:52]}  a6 {[%clk 0:02:59]} 8. Na3 {[%clk 0:02:52]}  Nf6 {[%clk 0:03:00]} 9. Be2 {[%clk 0:02:50]}  O-O {[%clk 0:03:00]} 10. Be3 {[%clk 0:02:50]}  Be6 {[%clk 0:02:59]} 11. O-O {[%clk 0:02:50]}  Ne8 {[%clk 0:02:59]} 12. Qd2 {[%clk 0:02:49]}  h6 {[%clk 0:02:31]} 13. Rfd1 {[%clk 0:02:35]}  Bg5 {[%clk 0:02:17]} 14. Bxg5 {[%clk 0:02:34]}  Qxg5 {[%clk 0:02:16]} 15. Qxg5 {[%clk 0:02:33]}  hxg5 {[%clk 0:02:17]} 16. Nc2 {[%clk 0:02:31]}  Rd8 {[%clk 0:02:03]} 17. Rd2 {[%clk 0:02:28]}  Rc8 {[%clk 0:01:55]} 18. Rad1 {[%clk 0:02:20]}  g6 {[%clk 0:01:47]} 19. h3 {[%clk 0:02:17]}  Kg7 {[%clk 0:01:46]} 20. Bg4 {[%clk 0:02:15]}  Kf6 {[%clk 0:01:45]} 21. Nd5+ {[%clk 0:01:59]}  Kg7 {[%clk 0:01:44]} 22. Bxe6 {[%clk 0:01:51]}  fxe6 {[%clk 0:01:43]} 23. Nde3 {[%clk 0:01:52]}  Rc7 {[%clk 0:01:33]} 24. f3 {[%clk 0:01:40]}  Kf6 {[%clk 0:01:28]} 25. Kf2 {[%clk 0:01:33]}  Ke7 {[%clk 0:01:28]} 26. Kg3 {[%clk 0:01:23]}  Nd8 {[%clk 0:01:27]} 27. a4 {[%clk 0:00:59]}  Nf7 {[%clk 0:01:20]} 28. a5 {[%clk 0:00:58]}  Nf6 {[%clk 0:01:18]} 29. b4 {[%clk 0:00:55]}  Rfc8 {[%clk 0:01:03]} 30. Na1 {[%clk 0:00:52]}  Nd7 {[%clk 0:00:36]} 31. Nb3 {[%clk 0:00:51]}  Rxc4 {[%clk 0:00:35]} 32. Nxc4 {[%clk 0:00:49]}  Rxc4 {[%clk 0:00:36]} 33. Nc5 {[%clk 0:00:42]}  Nxc5 {[%clk 0:00:33]} 34. bxc5 {[%clk 0:00:41]}  Rxc5 {[%clk 0:00:33]} 35. Rb2 {[%clk 0:00:39]}  Nd8 {[%clk 0:00:32]} 36. Rbd2 {[%clk 0:00:36]}  Nf7 {[%clk 0:00:28]} 37. Rb2 {[%clk 0:00:35]}  Nd8 {[%clk 0:00:28]} 38. Rbd2 {[%clk 0:00:31]}  Nf7 {[%clk 0:00:22]} 1/2-1/2


[Site "https://www.chess.com"]